[Event "23rd Alekhine FIDE 2019"]
[Site "Voronezh"]
[Date "2019.06.19"]
[Round "8.13"]
[White "Napalkov, Vladimir"]
[Black "Denishev, Marat"]
[Result "0-1"]
[ECO "A57"]
[WhiteElo "2043"]
[BlackElo "2196"]
[Annotator "NA"]
[PlyCount "48"]
[EventDate "2019.06.12"]
[EventType "swiss"]
[EventCountry "RUS"]
[SourceTitle "playchess.com"]
[Source "ChessBase"]
[SourceQuality "1"]
[TimeControl "40/5400+30:1800+30"]

1. d4 {[%emt 0:00:00]} Nf6 {[%emt 0:11:32]} 2. c4 {[%emt 0:00:00]} c5 {[%emt 0:00:10]} 3. d5 {[%emt 0:00:00]} b5 {[%emt 0:00:02]} 4. cxb5 {[%emt 0:00:01]} a6 {[%emt 0:00:00]} 5. e3 {[%emt 0:00:13]} axb5 {[%emt 0:01:22]} 6. Bxb5 {[%emt 0:00:13]} Bb7 {[%emt 0:09:16]} 7. Nc3 {[%emt 0:00:39]} g6 {[%emt 0:04:14]} 8. Nf3 {[%emt 0:01:15]} Bg7 {[%emt 0:00:08]} 9. O-O {[%emt 0:00:17]} O-O {[%emt 0:00:02]} 10. a4 {[%emt 0:00:20]} e6 {[%emt 0:02:04]} 11. e4 {[%emt 0:01:13]} exd5 {[%emt 0:03:40]} 12. exd5 {[%emt 0:00:26]} Na6 {[%emt 0:00:21]} 13. d6 {[%emt 0:08:23]} Re8 {[%emt 0:01:34]} 14. Bg5 {[%emt 0:10:19]} Nb4 {[%emt 0:01:20]} 15. Nd2 {[%emt 0:03:22]} h6 {[%emt 0:05:33]} 16. Be3 {[%emt 0:06:10]} Nfd5 {[%emt 0:02:39]} 17. Nxd5 {[%emt 0:03:52]} Nxd5 {[%emt 0:00:26]} 18. Nc4 {[%emt 0:00:17]} Qh4 {[%emt 0:04:23]} 19. Ra3 {[%emt 0:28:49]} Re4 {[%emt 0:03:10]} 20. g3 {[%emt 0:11:38]} Qh3 {[%emt 0:02:48]} 21. Qd2 {[%emt 0:05:36]} Rd4 {[%emt 0:03:29]} 22. Bxd4 {[%emt 0:05:51]} Qg2+ {[%emt 0:00:09]} 23. Kxg2 {[%emt 0:00:17]} Nf4+ {[%emt 0:00:01]} 24. Kg1 Nh3# 0-1

[Event "23rd Alekhine FIDE 2019"]
[Site "Voronezh"]
[Date "2019.06.19"]
[Round "8.14"]
[White "Gutkovich, Polina"]
[Black "Ponomariov, Timur"]
[Result "0-1"]
[ECO "A41"]
[WhiteElo "2029"]
[BlackElo "2172"]
[Annotator "NA"]
[PlyCount "66"]
[EventDate "2019.06.12"]
[EventType "swiss"]
[EventCountry "RUS"]
[SourceTitle "playchess.com"]
[Source "ChessBase"]
[SourceQuality "1"]
[TimeControl "40/5400+30:1800+30"]

1. d4 {[%emt 0:06:04]} d6 {[%emt 0:00:21]} 2. c4 {[%emt 0:01:02]} e5 {[%emt 0:00:06]} 3. Nf3 {[%emt 0:02:27]} e4 {[%emt 0:00:05]} 4. Ng5 {[%emt 0:00:16]} f5 {[%emt 0:00:06]} 5. Nc3 {[%emt 0:02:09]} Be7 {[%emt 0:00:14]} 6. Nh3 {[%emt 0:00:48]} Nf6 {[%emt 0:00:19]} 7. e3 {[%emt 0:01:28]} O-O {[%emt 0:00:11]} 8. Be2 {[%emt 0:00:09]} c5 {[%emt 0:08:20]} 9. d5 {[%emt 0:11:18]} Nbd7 {[%emt 0:00:38]} 10. f4 {[%emt 0:00:32]} exf3 {[%emt 0:00:20]} 11. gxf3 {[%emt 0:03:28]} Ne5 {[%emt 0:00:18]} 12. O-O {[%emt 0:02:17]} Qe8 {[%emt 0:01:51]} 13. Kh1 {[%emt 0:00:29]} Kh8 {[%emt 0:06:19]} 14. Rg1 {[%emt 0:02:03]} Rg8 {[%emt 0:04:38]} 15. b4 {[%emt 0:09:43]} cxb4 {[%emt 0:02:31]} 16. Nb5 {[%emt 0:00:06]} Qh5 {[%emt 0:00:35]} 17. Nf4 {[%emt 0:00:11]} Qh6 {[%emt 0:00:45]} 18. c5 {[%emt 0:04:54]} dxc5 {[%emt 0:02:48]} 19. d6 {[%emt 0:00:05]} Bd8 {[%emt 0:00:37]} 20. e4 {[%emt 0:05:29]} Qh4 {[%emt 0:02:29]} 21. Nd5 fxe4 {[%emt 0:07:01]} 22. Bg5 {[%emt 0:10:20]} Qh5 {[%emt 0:00:07]} 23. Bxf6 {[%emt 0:14:49]} exf3 {[%emt 0:04:06]} 24. Bf1 {[%emt 0:09:19]} Bxf6 {[%emt 0:01:23]} 25. Nxf6 {[%emt 0:00:32]} gxf6 {[%emt 0:00:07]} 26. Rxg8+ {[%emt 0:01:41]} Kxg8 {[%emt 0:00:01]} 27. Nc7 {[%emt 0:00:27]} Rb8 {[%emt 0:02:20]} 28. Qd5+ {[%emt 0:00:58]} Kh8 {[%emt 0:05:59]} 29. Bc4 {[%emt 0:06:48]} Bh3 {[%emt 0:00:19]} 30. d7 Bxd7 {[%emt 0:03:36]} 31. Rg1 {[%emt 0:00:32]} Bg4 {[%emt 0:01:03]} 32. Qd6 {[%emt 0:00:55]} Qf5 {[%emt 0:06:35]} 33. Be6 {[%emt 0:02:03]} f2 {[%emt 0:00:55]} 0-1

[Event "23rd Alekhine FIDE 2019"]
[Site "Voronezh"]
[Date "2019.06.20"]
[Round "9.1"]
[White "Ashutosh, Kumar"]
[Black "Beldyugin, Alexey"]
[Result "0-1"]
[ECO "A10"]
[WhiteElo "1852"]
[BlackElo "2126"]
[Annotator "NA"]
[PlyCount "98"]
[EventDate "2019.06.12"]
[EventType "swiss"]
[EventCountry "RUS"]
[SourceTitle "playchess.com"]
[Source "ChessBase"]
[SourceQuality "1"]
[TimeControl "40/5400+30:1800+30"]

1. c4 {[%emt 0:00:00]} g6 {[%emt 0:02:01]} 2. g3 {[%emt 0:00:00]} Bg7 {[%emt 0:00:09]} 3. Bg2 {[%emt 0:00:03]} Nf6 {[%emt 0:01:39]} 4. Nc3 {[%emt 0:03:14]} c6 {[%emt 0:00:55]} 5. Nf3 {[%emt 0:03:40]} d5 {[%emt 0:02:02]} 6. Qa4 {[%emt 0:04:43]} Nbd7 {[%emt 0:04:48]} 7. cxd5 {[%emt 0:00:48]} Nb6 {[%emt 0:00:09]} 8. Qb3 {[%emt 0:02:53]} Nbxd5 {[%emt 0:00:21]} 9. O-O {[%emt 0:02:15]} Qb6 {[%emt 0:00:53]} 10. d3 {[%emt 0:01:17]} Qxb3 {[%emt 0:00:31]} 11. axb3 {[%emt 0:00:08]} Nxc3 {[%emt 0:00:12]} 12. bxc3 {[%emt 0:00:35]} Nd5 {[%emt 0:00:03]} 13. d4 {[%emt 0:08:58]} Nxc3 {[%emt 0:00:15]} 14. Re1 {[%emt 0:01:34]} Nb5 {[%emt 0:03:06]} 15. e3 {[%emt 0:00:42]} Be6 {[%emt 0:04:00]} 16. Nd2 {[%emt 0:00:14]} O-O {[%emt 0:05:41]} 17. Nc4 {[%emt 0:00:23]} Bd5 {[%emt 0:01:04]} 18. Bf1 {[%emt 0:02:48]} Rfd8 {[%emt 0:07:46]} 19. Ra2 {[%emt 0:10:12]} Rac8 {[%emt 0:18:26]} 20. Bd2 {[%emt 0:02:16]} e6 {[%emt 0:05:31]} 21. Rc1 {[%emt 0:10:01]} b6 {[%emt 0:14:16]} 22. Rac2 {[%emt 0:11:27]} Bxd4 {[%emt 0:12:51]} 23. Na5 {[%emt 0:14:31]} bxa5 {[%emt 0:05:34]} 24. Bxb5 {[%emt 0:00:23]} Bxb3 {[%emt 0:04:07]} 25. exd4 {[%emt 0:07:27]} Bxc2 {[%emt 0:00:08]} 26. Ba6 {[%emt 0:00:04]} Be4 {[%emt 0:00:54]} 27. Bxc8 {[%emt 0:02:05]} Rxc8 {[%emt 0:00:06]} 28. Bxa5 {[%emt 0:00:11]} Rb8 {[%emt 0:00:24]} 29. Kf1 {[%emt 0:01:21]} Rb2 {[%emt 0:01:17]} 30. Ke1 {[%emt 0:00:55]} f6 {[%emt 0:01:07]} 31. Rc3 {[%emt 0:01:00]} Ra2 {[%emt 0:00:27]} 32. Bd8 {[%emt 0:00:28]} Kf7 {[%emt 0:00:22]} 33. Rb3 {[%emt 0:00:11]} e5 {[%emt 0:00:48]} 34. Rb7+ {[%emt 0:00:34]} Ke6 {[%emt 0:00:07]} 35. Re7+ {[%emt 0:01:15]} Kd6 {[%emt 0:00:26]} 36. dxe5+ {[%emt 0:01:49]} fxe5 {[%emt 0:00:02]} 37. Rxh7 {[%emt 0:01:00]} a5 {[%emt 0:00:51]} 38. Ra7 {[%emt 0:01:14]} a4 {[%emt 0:00:09]} 39. Bc7+ {[%emt 0:00:36]} Ke6 {[%emt 0:00:11]} 40. Ra5 {[%emt 0:02:46]} Bd5 {[%emt 0:00:14]} 41. f4 {[%emt 0:30:25]} e4 {[%emt 0:30:15]} 42. Be5 {[%emt 0:00:18]} Kf5 {[%emt 0:00:38]} 43. h3 {[%emt 0:00:12]} e3 {[%emt 0:00:06]} 44. Rc5 {[%emt 0:02:00]} Ke4 {[%emt 0:00:21]} 45. Rc1 {[%emt 0:00:45]} Rh2 {[%emt 0:01:06]} 46. Rc3 {[%emt 0:01:36]} Rxh3 {[%emt 0:03:24]} 47. g4 {[%emt 0:00:34]} g5 {[%emt 0:01:11]} 48. Bd6 {[%emt 0:00:46]} gxf4 {[%emt 0:00:21]} 49. Kd1 {[%emt 0:00:38]} e2+ {[%emt 0:00:53]} 0-1

[Event "23rd Alekhine FIDE 2019"]
[Site "Voronezh"]
[Date "2019.06.20"]
[Round "9.2"]
[White "Eliseev, Mikhail"]
[Black "Tatarintsev, Egor"]
[Result "1/2-1/2"]
[ECO "C10"]
[WhiteElo "2169"]
[BlackElo "2001"]
[Annotator "NA"]
[PlyCount "81"]
[EventDate "2019.06.12"]
[EventType "swiss"]
[EventCountry "RUS"]
[SourceTitle "playchess.com"]
[Source "ChessBase"]
[SourceQuality "1"]
[TimeControl "40/5400+30:1800+30"]

1. e4 {[%emt 0:00:09]} e6 {[%emt 0:00:00]} 2. d4 {[%emt 0:00:09]} d5 {[%emt 0:00:00]} 3. Nc3 {[%emt 0:00:11]} dxe4 {[%emt 0:00:00]} 4. Nxe4 {[%emt 0:00:11]} Bd7 {[%emt 0:00:00]} 5. Nf3 {[%emt 0:00:52]} Bc6 {[%emt 0:00:00]} 6. Bd3 {[%emt 0:01:41]} Nd7 {[%emt 0:00:10]} 7. O-O {[%emt 0:00:17]} Ngf6 {[%emt 0:00:03]} 8. Ng3 {[%emt 0:00:12]} Be7 {[%emt 0:00:05]} 9. c4 {[%emt 0:00:54]} Bxf3 {[%emt 0:03:00]} 10. Qxf3 {[%emt 0:00:15]} c5 {[%emt 0:00:20]} 11. Be3 {[%emt 0:08:01]} Qb6 {[%emt 0:10:28]} 12. dxc5 {[%emt 0:10:03]} Bxc5 {[%emt 0:01:15]} 13. Bxc5 {[%emt 0:00:57]} Nxc5 {[%emt 0:00:07]} 14. b3 {[%emt 0:00:48]} O-O {[%emt 0:02:29]} 15. Be2 {[%emt 0:05:15]} Rfd8 {[%emt 0:03:42]} 16. Rfd1 {[%emt 0:01:37]} a5 {[%emt 0:07:57]} 17. Qe3 {[%emt 0:02:14]} Rxd1+ {[%emt 0:07:00]} 18. Rxd1 {[%emt 0:03:16]} a4 {[%emt 0:01:27]} 19. Bf3 {[%emt 0:06:09]} axb3 {[%emt 0:02:50]} 20. axb3 {[%emt 0:00:07]} Qb4 {[%emt 0:01:08]} 21. Qd2 {[%emt 0:04:24]} Qxd2 {[%emt 0:03:03]} 22. Rxd2 {[%emt 0:00:21]} Nxb3 {[%emt 0:05:06]} 23. Rb2 {[%emt 0:01:37]} Nc5 {[%emt 0:01:56]} 24. Rb5 {[%emt 0:00:39]} Rc8 {[%emt 0:00:19]} 25. Bxb7 {[%emt 0:00:19]} Nxb7 {[%emt 0:01:07]} 26. Rxb7 {[%emt 0:00:07]} Kf8 {[%emt 0:00:04]} 27. Rb4 {[%emt 0:00:38]} Ke7 {[%emt 0:01:47]} 28. Nf1 {[%emt 0:00:44]} Rc7 {[%emt 0:01:39]} 29. Ne3 {[%emt 0:00:46]} Nd7 {[%emt 0:01:06]} 30. Kf1 {[%emt 0:00:25]} Kd6 {[%emt 0:00:34]} 31. Ke2 {[%emt 0:00:43]} Kc5 {[%emt 0:02:06]} 32. Rb2 {[%emt 0:08:54]} f5 {[%emt 0:05:11]} 33. f4 {[%emt 0:03:19]} g6 {[%emt 0:02:19]} 34. Kd3 {[%emt 0:03:15]} e5 {[%emt 0:06:23]} 35. Rb5+ {[%emt 0:02:11]} Kd6 {[%emt 0:00:07]} 36. Rd5+ {[%emt 0:01:34]} Ke6 {[%emt 0:00:07]} 37. fxe5 {[%emt 0:01:34]} Nxe5+ {[%emt 0:00:05]} 38. Kd4 {[%emt 0:00:17]} Nc6+ {[%emt 0:00:31]} 39. Kc3 {[%emt 0:00:09]} Ne5 {[%emt 0:02:16]} 40. Kd4 {[%emt 0:00:08]} Nc6+ {[%emt 0:00:04]} 41. Kc3 1/2-1/2

[Event "23rd Alekhine FIDE 2019"]
[Site "Voronezh"]
[Date "2019.06.20"]
[Round "9.3"]
[White "Gorshkov, Yury S."]
[Black "Vasiljev, Ilya"]
[Result "1-0"]
[ECO "A00"]
[WhiteElo "2103"]
[BlackElo "1762"]
[Annotator "NA"]
[PlyCount "69"]
[EventDate "2019.06.12"]
[EventType "swiss"]
[EventCountry "RUS"]
[SourceTitle "playchess.com"]
[Source "ChessBase"]
[SourceQuality "1"]
[TimeControl "40/5400+30:1800+30"]

1. g3 {[%emt 0:00:00]} Nf6 {[%emt 0:00:00]} 2. Bg2 {[%emt 0:00:11]} e6 {[%emt 0:00:10]} 3. Nf3 {[%emt 0:00:26]} Be7 {[%emt 0:00:08]} 4. O-O {[%emt 0:05:28]} O-O {[%emt 0:00:59]} 5. c4 {[%emt 0:03:14]} c5 {[%emt 0:01:36]} 6. b3 {[%emt 0:09:20]} Nc6 {[%emt 0:00:41]} 7. Bb2 {[%emt 0:00:13]} b6 {[%emt 0:03:40]} 8. d4 {[%emt 0:00:53]} cxd4 {[%emt 0:00:28]} 9. Nxd4 {[%emt 0:00:33]} Bb7 {[%emt 0:00:12]} 10. Nc3 {[%emt 0:00:47]} a6 {[%emt 0:00:38]} 11. Qd2 {[%emt 0:04:53]} Qc7 {[%emt 0:00:31]} 12. Nc2 {[%emt 0:01:16]} Rfd8 {[%emt 0:03:06]} 13. e4 {[%emt 0:00:43]} h5 {[%emt 0:07:37]} 14. h3 {[%emt 0:02:30]} d6 {[%emt 0:03:18]} 15. Rac1 {[%emt 0:07:18]} Ne5 {[%emt 0:00:12]} 16. f4 {[%emt 0:06:41]} Ned7 {[%emt 0:00:05]} 17. Kh1 {[%emt 0:08:07]} Rac8 {[%emt 0:00:13]} 18. Qe2 {[%emt 0:05:02]} Qb8 {[%emt 0:00:34]} 19. f5 {[%emt 0:10:39]} Ne5 {[%emt 0:02:57]} 20. fxe6 {[%emt 0:00:42]} fxe6 {[%emt 0:01:47]} 21. Nd4 {[%emt 0:00:08]} Re8 {[%emt 0:09:16]} 22. Nxe6 {[%emt 0:00:32]} Bf8 {[%emt 0:00:23]} 23. Nxf8 {[%emt 0:01:35]} Rxf8 {[%emt 0:00:04]} 24. Nd5 {[%emt 0:05:37]} Bxd5 {[%emt 0:00:06]} 25. exd5 {[%emt 0:02:22]} Rce8 {[%emt 0:00:17]} 26. Qd2 {[%emt 0:00:16]} Qd8 {[%emt 0:02:11]} 27. Rce1 {[%emt 0:00:13]} Nfd7 {[%emt 0:00:24]} 28. Bd4 {[%emt 0:01:51]} a5 {[%emt 0:01:34]} 29. Rf4 {[%emt 0:05:51]} Rxf4 {[%emt 0:02:10]} 30. gxf4 {[%emt 0:00:02]} Ng6 {[%emt 0:00:20]} 31. Re6 {[%emt 0:00:19]} Rxe6 {[%emt 0:03:00]} 32. dxe6 {[%emt 0:00:12]} Ndf8 {[%emt 0:00:07]} 33. f5 {[%emt 0:02:03]} Nh4 {[%emt 0:02:42]} 34. Bd5 {[%emt 0:00:12]} Kh8 {[%emt 0:02:21]} 35. Qh6+ 1-0

[Event "23rd Alekhine FIDE 2019"]
[Site "Voronezh"]
[Date "2019.06.20"]
[Round "9.4"]
[White "Khajrutdinov, Ildar"]
[Black "Zakirov, Vladislav"]
[Result "1/2-1/2"]
[ECO "A37"]
[WhiteElo "2063"]
[BlackElo "2099"]
[Annotator "NA"]
[PlyCount "65"]
[EventDate "2019.06.12"]
[EventType "swiss"]
[EventCountry "RUS"]
[SourceTitle "playchess.com"]
[Source "ChessBase"]
[SourceQuality "1"]
[TimeControl "40/5400+30:1800+30"]

1. Nf3 {[%emt 0:00:00]} c5 {[%emt 0:00:00]} 2. c4 {[%emt 0:02:27]} Nc6 {[%emt 0:00:00]} 3. Nc3 {[%emt 0:00:09]} g6 {[%emt 0:00:04]} 4. g3 {[%emt 0:00:51]} Bg7 {[%emt 0:00:04]} 5. Bg2 {[%emt 0:00:06]} e6 {[%emt 0:00:11]} 6. O-O {[%emt 0:00:40]} Nge7 {[%emt 0:00:02]} 7. e4 {[%emt 0:07:06]} O-O {[%emt 0:00:34]} 8. d3 {[%emt 0:00:47]} b6 {[%emt 0:07:32]} 9. Be3 {[%emt 0:11:02]} e5 {[%emt 0:10:44]} 10. Nd5 {[%emt 0:04:20]} d6 {[%emt 0:01:29]} 11. Nd2 {[%emt 0:07:36]} Nxd5 {[%emt 0:00:11]} 12. cxd5 {[%emt 0:00:19]} Nd4 {[%emt 0:00:08]} 13. Bxd4 {[%emt 0:02:21]} cxd4 {[%emt 0:00:16]} 14. a4 {[%emt 0:07:36]} Bh6 {[%emt 0:06:20]} 15. Nc4 {[%emt 0:01:10]} f5 {[%emt 0:02:00]} 16. f3 {[%emt 0:13:16]} fxe4 {[%emt 0:10:52]} 17. fxe4 {[%emt 0:01:02]} Ba6 {[%emt 0:04:49]} 18. b3 {[%emt 0:04:45]} Bxc4 {[%emt 0:00:23]} 19. bxc4 {[%emt 0:00:13]} Be3+ {[%emt 0:00:22]} 20. Kh1 {[%emt 0:00:03]} Rxf1+ {[%emt 0:00:16]} 21. Qxf1 {[%emt 0:00:21]} Qe7 {[%emt 0:00:22]} 22. Qe2 {[%emt 0:01:05]} Rf8 {[%emt 0:00:10]} 23. Rf1 {[%emt 0:00:14]} Rxf1+ {[%emt 0:00:05]} 24. Qxf1 {[%emt 0:01:17]} Qf7 {[%emt 0:00:33]} 25. Qxf7+ {[%emt 0:00:18]} Kxf7 {[%emt 0:00:05]} 26. Bh3 {[%emt 0:00:26]} Ke7 {[%emt 0:00:08]} 27. Bc8 {[%emt 0:02:17]} Bd2 {[%emt 0:00:04]} 28. Kg2 {[%emt 0:00:34]} Kf6 {[%emt 0:00:05]} 29. Bd7 {[%emt 0:00:20]} Be3 {[%emt 0:00:04]} 30. Bc8 {[%emt 0:00:08]} Bd2 {[%emt 0:00:04]} 31. Bd7 {[%emt 0:00:06]} Be3 {[%emt 0:00:04]} 32. Bc8 {[%emt 0:00:10]} Bd2 {[%emt 0:00:03]} 33. Bd7 {[%emt 0:00:40]} 1/2-1/2

[Event "23rd Alekhine FIDE 2019"]
[Site "Voronezh"]
[Date "2019.06.20"]
[Round "9.5"]
[White "Artemov, Nikita"]
[Black "Popov, Maksim"]
[Result "0-1"]
[ECO "C10"]
[WhiteElo "2028"]
[BlackElo "2014"]
[Annotator "NA"]
[PlyCount "62"]
[EventDate "2019.06.12"]
[EventType "swiss"]
[EventCountry "RUS"]
[SourceTitle "playchess.com"]
[Source "ChessBase"]
[SourceQuality "1"]
[TimeControl "40/5400+30:1800+30"]

1. e4 {[%emt 0:03:59]} e6 {[%emt 0:00:00]} 2. d4 {[%emt 0:00:09]} d5 {[%emt 0:00:00]} 3. Nc3 {[%emt 0:00:05]} dxe4 {[%emt 0:00:00]} 4. Nxe4 {[%emt 0:00:06]} Bd7 {[%emt 0:00:00]} 5. Nf3 {[%emt 0:00:06]} Bc6 {[%emt 0:00:18]} 6. Bd3 {[%emt 0:05:03]} Nf6 {[%emt 0:01:46]} 7. Nxf6+ {[%emt 0:05:55]} gxf6 {[%emt 0:00:09]} 8. c3 {[%emt 0:04:35]} Qd5 {[%emt 0:05:54]} 9. c4 {[%emt 0:06:24]} Qh5 {[%emt 0:01:11]} 10. Be2 {[%emt 0:00:16]} Bb4+ {[%emt 0:02:29]} 11. Bd2 {[%emt 0:00:12]} Qa5 {[%emt 0:02:05]} 12. O-O {[%emt 0:10:26]} Bxd2 {[%emt 0:00:35]} 13. Qxd2 {[%emt 0:01:32]} Qxd2 {[%emt 0:00:10]} 14. Nxd2 {[%emt 0:00:06]} b6 {[%emt 0:01:07]} 15. Bf3 {[%emt 0:00:29]} Bxf3 {[%emt 0:00:15]} 16. Nxf3 {[%emt 0:00:05]} Nd7 {[%emt 0:00:15]} 17. d5 {[%emt 0:02:40]} e5 {[%emt 0:02:40]} 18. Nh4 {[%emt 0:00:35]} a5 {[%emt 0:02:02]} 19. Nf5 {[%emt 0:03:38]} O-O-O {[%emt 0:00:33]} 20. b4 {[%emt 0:12:08]} axb4 {[%emt 0:00:16]} 21. Rab1 {[%emt 0:00:21]} Kb7 {[%emt 0:00:48]} 22. Rxb4 {[%emt 0:00:42]} Ra8 {[%emt 0:00:17]} 23. a4 {[%emt 0:09:51]} Ra5 {[%emt 0:00:24]} 24. d6 {[%emt 0:00:49]} c5 {[%emt 0:00:20]} 25. Rb3 {[%emt 0:00:41]} Rxa4 {[%emt 0:00:07]} 26. Rg3 {[%emt 0:01:21]} Rxc4 {[%emt 0:01:01]} 27. Rg7 {[%emt 0:00:06]} Rf8 {[%emt 0:00:30]} 28. Rxh7 {[%emt 0:02:00]} b5 {[%emt 0:00:38]} 29. Rh3 {[%emt 0:03:32]} b4 {[%emt 0:00:26]} 30. Rb3 {[%emt 0:00:52]} Ra8 {[%emt 0:01:14]} 31. h4 {[%emt 0:00:16]} Rf4 {[%emt 0:00:20]} 0-1

[Event "23rd Alekhine FIDE 2019"]
[Site "Voronezh"]
[Date "2019.06.20"]
[Round "9.6"]
[White "Denishev, Marat"]
[Black "Polukhin, Alexander"]
[Result "1-0"]
[ECO "D02"]
[WhiteElo "2196"]
[BlackElo "1968"]
[Annotator "NA"]
[PlyCount "74"]
[EventDate "2019.06.12"]
[EventType "swiss"]
[EventCountry "RUS"]
[SourceTitle "playchess.com"]
[Source "ChessBase"]
[SourceQuality "1"]
[TimeControl "40/5400+30:1800+30"]

1. d4 {[%emt 0:00:00]} d5 {[%emt 0:00:00]} 2. Nf3 {[%emt 0:00:00]} Nf6 {[%emt 0:00:00]} 3. g3 {[%emt 0:00:12]} c6 {[%emt 0:00:09]} 4. Bg2 {[%emt 0:00:02]} Bf5 {[%emt 0:00:09]} 5. O-O {[%emt 0:00:07]} e6 {[%emt 0:00:53]} 6. Nh4 {[%emt 0:03:27]} Bg6 {[%emt 0:04:30]} 7. Nxg6 {[%emt 0:01:31]} hxg6 {[%emt 0:00:08]} 8. Qd3 {[%emt 0:01:25]} Bd6 {[%emt 0:04:59]} 9. c4 {[%emt 0:00:26]} Nbd7 {[%emt 0:01:08]} 10. Nc3 {[%emt 0:00:12]} O-O {[%emt 0:01:58]} 11. Bg5 {[%emt 0:02:17]} dxc4 {[%emt 0:08:56]} 12. Qxc4 {[%emt 0:00:10]} Qa5 {[%emt 0:00:34]} 13. h4 {[%emt 0:02:48]} Rac8 {[%emt 0:05:40]} 14. Rfd1 {[%emt 0:08:12]} e5 {[%emt 0:16:25]} 15. Bh3 {[%emt 0:05:06]} Rc7 {[%emt 0:04:18]} 16. a3 {[%emt 0:03:46]} exd4 {[%emt 0:06:16]} 17. Qxd4 {[%emt 0:05:36]} Be5 {[%emt 0:06:14]} 18. Qe3 {[%emt 0:12:01]} Qb6 {[%emt 0:03:42]} 19. Rab1 {[%emt 0:15:39]} Re8 {[%emt 0:07:12]} 20. Qf3 {[%emt 0:04:19]} Nc5 {[%emt 0:08:21]} 21. Be3 {[%emt 0:05:07]} Bxc3 {[%emt 0:00:57]} 22. bxc3 {[%emt 0:02:05]} Qa5 {[%emt 0:00:10]} 23. Bd4 {[%emt 0:01:38]} Nce4 {[%emt 0:00:58]} 24. Rd3 {[%emt 0:11:07]} Qxa3 {[%emt 0:02:06]} 25. c4 {[%emt 0:07:23]} Qa2 {[%emt 0:01:01]} 26. Rc1 {[%emt 0:00:06]} c5 {[%emt 0:01:10]} 27. Ra3 {[%emt 0:01:08]} Qd2 {[%emt 0:01:34]} 28. Be3 {[%emt 0:00:02]} Qb2 {[%emt 0:02:27]} 29. Rd3 {[%emt 0:02:44]} Rce7 {[%emt 0:01:33]} 30. Bf4 {[%emt 0:01:06]} Nh5 {[%emt 0:01:26]} 31. Rb3 {[%emt 0:00:57]} Qa2 {[%emt 0:00:25]} 32. Ra3 {[%emt 0:00:18]} Qb2 {[%emt 0:00:25]} 33. Rb3 {[%emt 0:00:04]} Qa2 {[%emt 0:01:04]} 34. Ra3 {[%emt 0:00:04]} Qb2 {[%emt 0:00:04]} 35. Rb3 {[%emt 0:00:17]} Qa2 {[%emt 0:00:14]} 36. Ra3 {[%emt 0:01:03]} Qb2 {[%emt 0:00:05]} 37. Be3 Qf6 1-0

[Event "23rd Alekhine FIDE 2019"]
[Site "Voronezh"]
[Date "2019.06.20"]
[Round "9.7"]
[White "Bukatin, Arseny"]
[Black "Zhileykin, Andrey"]
[Result "0-1"]
[ECO "B92"]
[WhiteElo "2024"]
[BlackElo "2193"]
[Annotator "NA"]
[PlyCount "94"]
[EventDate "2019.06.12"]
[EventType "swiss"]
[EventCountry "RUS"]
[SourceTitle "playchess.com"]
[Source "ChessBase"]
[SourceQuality "1"]
[TimeControl "40/5400+30:1800+30"]

1. e4 {[%emt 0:00:00]} c5 {[%emt 0:00:00]} 2. Nf3 {[%emt 0:00:00]} d6 {[%emt 0:00:00]} 3. d4 {[%emt 0:00:00]} cxd4 {[%emt 0:00:00]} 4. Nxd4 {[%emt 0:00:00]} Nf6 {[%emt 0:00:00]} 5. Nc3 {[%emt 0:00:00]} a6 {[%emt 0:00:00]} 6. Be2 {[%emt 0:00:00]} e5 {[%emt 0:00:00]} 7. Nb3 {[%emt 0:00:00]} Be7 {[%emt 0:00:00]} 8. O-O {[%emt 0:00:00]} O-O {[%emt 0:00:00]} 9. Be3 {[%emt 0:00:05]} Be6 {[%emt 0:00:15]} 10. Qd2 {[%emt 0:00:10]} Qc7 {[%emt 0:00:26]} 11. a4 {[%emt 0:00:31]} Nbd7 {[%emt 0:00:11]} 12. Rfd1 {[%emt 0:00:14]} Rfd8 {[%emt 0:00:26]} 13. a5 {[%emt 0:00:27]} Nc5 {[%emt 0:04:32]} 14. Nxc5 {[%emt 0:00:23]} dxc5 {[%emt 0:00:06]} 15. Qe1 {[%emt 0:00:10]} c4 {[%emt 0:14:30]} 16. Rxd8+ {[%emt 0:07:40]} Bxd8 {[%emt 0:00:43]} 17. f3 {[%emt 0:03:19]} Be7 {[%emt 0:02:02]} 18. Na4 {[%emt 0:09:48]} Nd7 {[%emt 0:02:03]} 19. Qc3 {[%emt 0:28:14]} Rc8 {[%emt 0:02:14]} 20. Nb6 {[%emt 0:16:10]} Nxb6 {[%emt 0:04:06]} 21. axb6 {[%emt 0:00:06]} Qc6 {[%emt 0:00:19]} 22. Ra5 {[%emt 0:00:07]} f6 {[%emt 0:00:34]} 23. Kf2 {[%emt 0:08:37]} Qe8 {[%emt 0:00:34]} 24. Kg1 {[%emt 0:00:52]} Qf8 {[%emt 0:06:08]} 25. Ra4 {[%emt 0:01:36]} Bc5 {[%emt 0:01:57]} 26. Kf2 {[%emt 0:03:53]} Qd6 {[%emt 0:14:19]} 27. Bxc4 {[%emt 0:09:38]} Bxe3+ {[%emt 0:13:51]} 28. Kxe3 {[%emt 0:00:10]} Qxb6+ {[%emt 0:00:07]} 29. Ke2 {[%emt 0:00:06]} Bxc4+ {[%emt 0:00:32]} 30. Rxc4 {[%emt 0:00:10]} Qb5 {[%emt 0:00:06]} 31. b3 {[%emt 0:00:04]} Rxc4 {[%emt 0:07:17]} 32. bxc4 {[%emt 0:00:01]} Qb1 {[%emt 0:00:10]} 33. Kf2 {[%emt 0:02:54]} h6 {[%emt 0:00:14]} 34. Kg3 {[%emt 0:01:54]} Kh7 {[%emt 0:00:14]} 35. h4 {[%emt 0:02:50]} h5 {[%emt 0:01:40]} 36. Qb3 Qxb3 {[%emt 0:01:15]} 37. cxb3 {[%emt 0:00:55]} Kg6 {[%emt 0:00:45]} 38. f4 {[%emt 0:02:18]} Kf7 {[%emt 0:00:03]} 39. fxe5 {[%emt 0:02:39]} fxe5 {[%emt 0:00:05]} 40. Kf3 {[%emt 0:02:15]} Ke6 {[%emt 0:00:05]} 41. Ke3 {[%emt 0:30:18]} Kd6 {[%emt 0:30:04]} 42. Kd3 {[%emt 0:00:18]} Kc5 {[%emt 0:00:04]} 43. Kc3 {[%emt 0:00:57]} a5 {[%emt 0:00:07]} 44. g3 {[%emt 0:00:27]} g6 {[%emt 0:00:05]} 45. Kd3 {[%emt 0:00:42]} Kb4 {[%emt 0:00:04]} 46. Kc2 {[%emt 0:00:09]} a4 {[%emt 0:00:15]} 47. bxa4 {[%emt 0:00:07]} Kxc4 {[%emt 0:00:03]} 0-1